Workbook

Sheet Budget Summary
A2: Attachment A - Budget Worksheet
A19: SFY2024 Human Trafficking Grant
A21: Cost Categories | C21: Cash Expenditures
A24: Personnel Costs | C24: ='Budget Detail'!E15 -> 0
A26: Overtime Costs | C26: ='Budget Detail'!E25 -> 0
A28: Fringe Benefit Costs | C28: ='Budget Detail'!E35 -> 0
A30: Indirect Costs | C30: ='Budget Detail'!E45 -> 0
A32: Consultants/Contractors Costs | C32: ='Budget Detail'!E55 -> 0
A34: Travel Costs | C34: ='Budget Detail'!E65 -> 0
A36: Equipment Costs | C36: ='Budget Detail'!E75 -> 0
A38: Supplies Costs | C38: ='Budget Detail'!E85 -> 0
A40: Other Costs | C40: ='Budget Detail'!E95 -> 0
A42: Total Costs | C42: =C24+C26+C28+C30+C32+C36+C34+C38+C40 -> 0
A45: Name of Applicant Organization

Sheet Budget Detail
A1: Executive Office of Public Safety and Security
A2: Office of Grants and Research
A3: SFY2024 Human Trafficking Grant
A4: =CONCATENATE("Attachment A - ", 'Budget Summary'!B45) -> Attachment A -
A6: INSTRUCTIONS: This is a macro-enabled document. Please make sure that you have enabled macros when prompted upon opening this document. The items marked as Example are only examples, and do not necessarily reflect items in your requested budget. Please note that the subtotals will auto-populate based on the numbers reported within each category. Your requested budget per cost category shall be entered in the rows below the Examples using the "Add" command button to add another row if needed. If you have any questions, please contact your grant manager.
A8: PERSONNEL - Costs associated with agency personnel. List position, percentage of time charged to the grant, and annual salary. Include a brief description of the duties/activities to be completed and supported with grant funding. Click the "Add Personnel" button to add a new record. To delete an unwanted record, click into the cell that you want to delete, and click the "Delete Row" button.
A10: Employee Name | B10: Pay Rate | C10: Quantity | D10: Description | E10: Cash Expenditures
A11: Example: Sue Smith | B11: 23.4875 | C11: 300 | D11: Employee is projected to work a total of 300 hours during the grant at $23.4875/hr. | E11: =IF(B11="","",ROUND(ROUND(B11,4)*ROUND(C11,4),2)) -> 7046.25
A12: Example: Tracey Thomas | B12: 1730.77 | C12: 6 | D12: $1730.77 per pay period x 6 pay periods. Reporting $5,000 match for T. Thomas expenses. | E12: =IF(B12="","",ROUND(ROUND(B12,4)*ROUND(C12,4),2)) -> 10384.62
A15: Subtotal: | E15: =SUM(OFFSET(Personnel,5,4):OFFSET(Overtime,-4,4)) -> 0
A18: OVERTIME - Overtime is limited to sworn law enforcement personnel only. Indicate overtime rate for each officer charged to the grant and the number of overtime hours. Refer to OGR Overtime Police in the AGF. Click the "Add Overtime" button to add a new record. To delete an unwanted record, click into the cell that you want to delete, and click the "Delete Row" button.
A20: Employee Name | B20: Pay Rate | C20: Quantity | D20: Description | E20: Cash Expenditures
A21: Example: Sue Smith | B21: 40 | C21: 104 | D21: Advocate worked a total of 104 hours for follow-up investigation of DV cases during the quarter at $40.00/hour. Reporting $2,500 match for S. Smith. | E21: =IF(B21="","",ROUND(ROUND(B21,4)*ROUND(C21,4),2)) -> 4160
A22: Example: Tracey Thomas | B22: 32 | C22: 52 | D22: Officer worked a total of 52 hours responding to initial DV calls during the quarter at $32.00/hour. | E22: =IF(B22="","",ROUND(ROUND(B22,4)*ROUND(C22,4),2)) -> 1664
A25: Subtotal: | E25: =SUM(OFFSET(Overtime,5,4):OFFSET(Fringe,-4,4)) -> 0
A28: FRINGE AND PAYROLL TAX - A copy of your agency's fringe rate agreement must be provided with the application submission. Eligible costs may include the employer share of the following: life insurance, health insurance, social security costs, pension costs, unemployment insurance costs, workers compensation insurance, FMLA costs, and payroll taxes. Click the "Add Fringe" button to add a new record. To delete an unwanted record, click into the cell that you want to delete, and click the "Delete Row" button.
A30: Employee Name | B30: Wages Applied to Fringe | C30: Contract Fringe Rate | D30: Description | E30: Cash Expenditures
A31: Example: Sue Smith | B31: 7046.25 | C31: 0.21 | D31: Per the fringe rate agreement, find the applicable cost categories to apply fringe to. In this example, the applicable cost category is "Personnel." Take Sue Smith's total wages reported on this worksheet under the "Personnel" section and multiply by the federally approved fringe rate or the fringe rate that was proposed and approved by OGR in the application process. ($7,046.25 * 21%). Match expenditures should be in relation to the match in the applicable category. | E31: =IF(B31="","",ROUND(ROUND(B31,4)*ROUND(C31,6),2)) -> 1479.71
A32: Example: Tracey Thomas | B32: 10384.62 | C32: 0.1 | D32: Per the fringe rate agreement, find the applicable cost categories to apply fringe to. In this example, the applicable cost category is "Personnel." Take Tracey Thomas' total wages reported on this worksheet under the "Personnel" section and multiply by the breakout of what rates are being charged per eligible cost. (7.5% - health insurance, 2% - life insurance, .5% - workers compensation). | E32: =IF(B32="","",ROUND(ROUND(B32,4)*ROUND(C32,6),2)) -> 1038.46
E33: =IF(B33="","",ROUND(ROUND(B33,4)*ROUND(C33,6),2)) -> 
A35: Subtotal: | E35: =SUM(OFFSET(Fringe,5,4):OFFSET(Indirect,-4,4)) -> 0
A38: INDIRECT COSTS
A40: Employee Name | B40: Expenses Applied to Indirect Rate | C40: Contract Indirect Rate | D40: Description | E40: Cash Expenditures
A41: Example: Sue Smith | B41: 8525.96 | C41: 0.18 | D41: The federally approved rate of "18%" times allowable expenses per contract. If allowable expenses are all categories, take the sum of all categories and multiply by the federally approved rate. If allowable expenses are only Personnel and Fringe like in this example, take the approved rate and multiply by the sum of Personnel and Fringe total costs associated with Sue Smith. (18% * (7046.25 + 1479.71)). | E41: =IF(B41="","",ROUND(ROUND(B41,4)*ROUND(C41,6),2)) -> 1534.67
A42: Example: Tracey Thomas | B42: 11423.08 | C42: 0.18 | D42: The federally approved rate of "18%" times allowable expenses per contract. If allowable expenses are all categories, take the sum of all categories and multiply by the federally approved rate. If allowable expenses are only Personnel and Fringe like in this example, take the approved rate and multiply by the sum of Personnel and Fringe total costs associated with Tracey Thomas. (18% * (10,384.62 + 1,038.46)). | E42: =IF(B42="","",ROUND(ROUND(B42,4)*ROUND(C42,6),2)) -> 2056.15
A45: Subtotal: | E45: =SUM(OFFSET(Indirect,5,4):OFFSET(Contractors,-4,4)) -> 0
A48: CONTRACTORS/CONSULTANTS - Consultant or Sub-Awards/Contracts to be funded. Provide a description of the product/services to be procured by contract and an estimate of the cost. Applicants must follow their organization's own procurement policy. The maximum rate for consultants is $650 for an 8 hour day or $81.25 per hour. Any request for compensation over $650 per day requires prior written approval by OGR. This rate is the exception, not the rule. Click the "Add C/C" button to add a new record. To delete an unwanted record, click into the cell that you want to delete, and click the "Delete Row" button.
A50: Contractors/Consultants Name | B50: Pay Rate | C50: Quantity | D50: Description | E50: Cash Expenditures
A51: Example: JJ Counseling | B51: 200 | C51: 24 | D51: Counseling of domestic violence survivors; $200 per day x 24 days. Submitting reimbursement for $2,800. | E51: =IF(B51="","",ROUND(ROUND(B51,4)*ROUND(C51,4),2)) -> 4800
A52: Example: B & B Tech Support | B52: 45 | C52: 210 | D52: Installation of database and training; $45 per hour x 210 hours | E52: =IF(B52="","",ROUND(ROUND(B52,4)*ROUND(C52,4),2)) -> 9450
E53: =IF(B53="","",ROUND(ROUND(B53,4)*ROUND(C53,4),2)) -> 
A55: Subtotal: | E55: =SUM(OFFSET(Contractors,5,4):OFFSET(Travel,-4,4)) -> 0
A58: TRAVEL - Travel directly related to the purpose of the grant. In-state travel costs associated with the grant shall include mileage rates not in excess of $0.62 per mile, as well as the actual costs of tolls and parking. No grant funds may be spent for out-of-state conference fees, out- of-state travel or out-of-state lodging without prior written approval from OGR. Click the "Add Travel" button to add a new record. To delete an unwanted record, click into the cell that you want to delete, and click the "Delete Row" button.
A60: Employee Name | B60: Rate | C60: Quantity | D60: Description | E60: Cash Expenditures
A61: Example: Sue Smith | B61: 0.62 | C61: 250 | D61: Mileage reimbursement for 250 miles. | E61: =IF(B61="","",ROUND(ROUND(B61,4)*ROUND(C61,4),2)) -> 155
A62: Example: Tracey Thomas | B62: 0.62 | C62: 500 | D62: Travel related to grant; $0.62/mile x 500 miles | E62: =IF(B62="","",ROUND(ROUND(B62,4)*ROUND(C62,4),2)) -> 310
A65: Subtotal: | E65: =SUM(OFFSET(Travel,5,4):OFFSET(Equipment,-4,4)) -> 0
A68: EQUIPMENT - Tangible non-expendable personal property having a useful life of more than one year; cost based on classification of equipment. Click the "Add Equipment" button to add a new record. To delete an unwanted record, click into the cell that you want to delete, and click the "Delete Row" button.
A70: Equipment | B70: Cost | C70: Quantity | D70: Description | E70: Cash Expenditures
A71: Example: Laptop | B71: 1200 | C71: 1 | D71: (1) Dell 1000 Laptop at $1,200.00. | E71: =IF(B71="","",ROUND(ROUND(B71,4)*ROUND(C71,4),2)) -> 1200
A72: Example: Computer Keyboard | B72: 50 | C72: 3 | D72: Replacement keyboard, IBM part #872021. (3) keyboards at $50/each | E72: =IF(B72="","",ROUND(ROUND(B72,4)*ROUND(C72,4),2)) -> 150
A75: Subtotal: | E75: =SUM(OFFSET(Equipment,5,4):OFFSET(Supplies,-4,4)) -> 0
A78: SUPPLIES - General supplies directly correlating to the program. Click the "Add Supplies" button to add a new record. To delete an unwanted record, click into the cell that you want to delete, and click the "Delete Row" button.
A80: Supplies/Company | B80: Cost | C80: Quantity | D80: Description | E80: Cash Expenditures
A81: Example: Copy Paper | B81: 50 | C81: 4 | D81: $50.00/box, 4 boxes. | E81: =IF(B81="","",ROUND(ROUND(B81,4)*ROUND(C81,4),2)) -> 200
A82: Example: ABC Office Supply | B82: 75 | C82: 1 | D82: 1 lot of office supplies (pens, staples, paperclips), $75/lot | E82: =IF(B82="","",ROUND(ROUND(B82,4)*ROUND(C82,4),2)) -> 75
A85: Subtotal: | E85: =SUM(OFFSET(Supplies,5,4):OFFSET(Other,-4,4)) -> 0
A88: OTHER - For items not included in the aforementioned. List items by major type and the basis of the computation. Click the "Add Other" button to add a new record. To delete an unwanted record, click into the cell that you want to delete, and click the "Delete Row" button.
A90: Item/Company | B90: Cost | C90: Quantity | D90: Description | E90: Cash Expenditures
A91: Example: Telephone | B91: 65 | C91: 6 | D91: Verizon: January-June at $65 per month | E91: =IF(B91="","",ROUND(ROUND(B91,4)*ROUND(C91,4),2)) -> 390
A92: Example: Heat | B92: 6000 | C92: 0.25 | D92: Projected total bill for office during grant period is $6,000.00; this program is 1/4 of office space | E92: =IF(B92="","",ROUND(ROUND(B92,4)*ROUND(C92,4),2)) -> 1500
E93: =IF(B93="","",ROUND(ROUND(B93,4)*ROUND(C93,4),2)) -> 
A95: Subtotal: | E95: =SUM(OFFSET(Other,5,4):OFFSET(GrandTotal,-3,4)) -> 0
A97: Grand Total: | E97: =ROUND(SUM(E15+E25+E35+E45+E55+E65+E75+E85+E95),2) -> 0
